bitfinex-derivatives/quotes_ETHF0:USTF0_20220106
["timestamp","ask_amount","ask_price","bid_price","bid_amount"]
[1641489851708,3.30799,3415.4,3414.2,0.1968]
[1641489851900,1.3032,3415.0,3414.1,1.46417601]
[1641489852102,1.3032,3414.8,3413.7,2.20159]
[1641489852300,1.3032,3414.8,3413.7,3.66593967]
[1641489852700,1.3032,3414.8,3413.8,12.64]
[1641489853100,1.3032,3414.8,3414.0,12.64]
[1641489853301,0.384472,3414.7,3414.0,12.64]
[1641489853500,0.384472,3414.7,3414.0,13.037182]
[1641489853703,2.00479,3414.4,3414.0,13.037182]
[1641489853900,2.00479,3414.4,3414.3,12.8368]
[1641489854099,2.00479,3414.4,3414.3,14.182582]
[1641489855200,2.389262,3414.4,3413.3,38.2544407]
[1641489855400,1.3032,3414.1,3413.3,2.20159]
[1641489855602,2.00479,3414.0,3413.3,2.20159]
[1641489855801,2.57267924,3414.4,3413.3,2.20159]
[1641489856001,2.57267924,3414.4,3413.3,2.00479]
[1641489856502,2.57267924,3414.4,3413.3,14.64479]
[1641489856904,2.57267924,3414.4,3413.3,16.14479]
[1641489857304,2.57267924,3414.4,3413.7,12.64]
[1641489857501,1.95927924,3414.4,3413.7,12.64]
[1641489857716,1.95927924,3414.4,3413.6,1.5]
[1641489857717,1.95927924,3414.4,3413.3,4.00958]
[1641489857903,2.61127924,3414.4,3413.3,4.00958]
[1641489859304,2.61127924,3414.4,3413.3,18.14958]
[1641489859505,1.95927924,3414.4,3413.7,12.64]
[1641489859704,1.95927924,3414.4,3413.7,13.3825]
[1641489859908,1.95927924,3414.4,3413.7,0.7425]
[1641489861004,1.95927924,3414.4,3413.4,12.64]
[1641489861802,1.57480724,3414.4,3413.4,14.10447191]
[1641489862002,1.57480724,3414.4,3413.7,12.64]
[1641489862202,1.57480724,3414.4,3413.9,12.64]
[1641489862605,1.57480724,3414.4,3414.0,0.397182]
[1641489863402,29.56779,3414.8,3414.4,12.64]
[1641489863603,29.56779,3414.8,3414.5,0.397182]
[1641489863802,2.00479,3414.8,3414.7,1.5]
[1641489864004,2.00479,3414.8,3414.6,13.099982]
[1641489864204,2.00479,3414.8,3414.7,13.037182]
[1641489866203,2.00479,3414.8,3414.7,14.537182]
[1641489866604,1.82087831,3414.9,3414.7,14.537182]
[1641489866605,1.82087831,3414.9,3414.7,16.00103436]
[1641489866804,2.42776122,3415.1,3414.7,16.00103436]
[1641489866805,1.82087831,3415.0,3414.9,12.64]
[1641489867003,1.82087831,3415.0,3414.9,14.537182]
[1641489868005,3.82566831,3415.3,3414.9,14.537182]
[1641489870709,3.82566831,3415.3,3414.9,0.397182]
[1641489870910,4.21014031,3415.3,3414.6,0.73147763]
[1641489871109,4.21014031,3415.3,3414.5,16.10879881]
[1641489871110,1.82087831,3415.2,3414.5,16.84027644]
[1641489871313,1.82087831,3415.2,3414.5,15.37626763]
[1641489872111,1.82087831,3414.9,3414.5,14.64479]
[1641489873413,1.82087831,3414.9,3414.5,2.00479]
[1641489874614,1.82087831,3414.9,3414.5,14.64479]
[1641489875515,1.82087831,3414.9,3414.6,13.037182]
[1641489875713,1.82087831,3414.9,3414.7,13.099982]
[1641489876716,1.82087831,3414.9,3414.7,12.64]
[1641489877115,1.82087831,3414.9,3414.7,13.099982]
[1641489877315,1.82087831,3414.9,3414.7,12.64]
[1641489877515,1.82087831,3415.0,3414.6,0.397182]
[1641489878019,0.384472,3415.1,3414.6,0.397182]
[1641489878217,0.384472,3415.1,3414.5,14.64479]
[1641489879319,1.86289941,3414.8,3414.5,14.64479]
[1641489879518,1.86289941,3414.8,3414.5,2.00479]
[1641489879718,2.71979941,3414.8,3414.2,0.72838151]
[1641489879918,4.72458941,3414.8,3414.2,0.72838151]
[1641489880118,4.72458941,3414.8,3413.5,2.00479]
[1641489880521,1.86289941,3414.7,3413.5,2.00479]
[1641489881920,2.00479,3414.4,3413.5,2.00479]
[1641489882120,1.86289941,3414.1,3413.6,1.5]
[1641489882321,2.24737141,3414.1,3413.6,1.5]
[1641489882722,2.24737141,3414.1,3414.0,1.5]
[1641489882723,1.86289941,3414.1,3414.0,1.5]
[1641489882921,1.86289941,3414.1,3414.0,1.959982]
[1641489883123,1.86289941,3414.1,3414.0,1.5]
[1641489883323,4.48865588,3414.4,3414.0,1.5]
[1641489883522,2.00479,3414.4,3414.1,1.5]
[1641489883721,2.00479,3414.4,3413.9,12.64]
[1641489884723,2.389262,3414.4,3413.9,12.64]
[1641489886824,2.389262,3414.4,3414.0,1.5]
[1641489887025,2.389262,3414.4,3414.0,14.14]
[1641489888229,2.389262,3414.4,3414.0,1.5]
[1641489888427,2.389262,3414.4,3413.8,1.5]
[1641489889430,2.389262,3414.4,3413.5,2.00479]
[1641489890434,2.389262,3414.4,3413.6,12.64]
[1641489890834,2.389262,3414.4,3413.8,12.64]
[1641489891034,2.389262,3414.4,3413.9,1.5]
[1641489891932,2.389262,3414.4,3413.9,14.14]
[1641489893534,2.389262,3414.4,3413.9,1.5]
[1641489894331,2.389262,3414.4,3413.4,1.46446977]
[1641489894332,2.389262,3414.4,3413.0,1.5]
[1641489894534,1.46504047,3414.0,3412.2,1.5]
[1641489894732,28.8745,3414.2,3412.2,1.5]
[1641489894933,1.46507052,3414.0,3412.2,14.14]
[1641489895133,1.46507052,3414.0,3412.6,1.82095379]
[1641489895339,0.91738477,3413.9,3412.6,1.82095379]
[1641489896135,2.00479,3413.1,3412.6,1.82095379]
[1641489896338,2.84219,3413.1,3412.7,0.397181]
[1641489896534,0.8374,3413.1,3412.7,14.537181]
[1641489896735,0.8374,3413.1,3413.0,1.5]
[1641489897435,3.86768941,3413.5,3413.0,1.959982]
[1641489897641,0.384472,3413.4,3413.0,1.5]
[1641489897837,0.384472,3413.4,3413.0,1.96589111]
[1641489898439,0.384472,3413.4,3413.0,0.46589111]
[1641489898839,0.384472,3413.4,3412.9,1.897181]
[1641489899339,1.86289941,3413.7,3413.4,12.64]
[1641489899541,1.86289941,3413.7,3413.6,12.64]
[1641489899839,1.86289941,3413.7,3413.6,14.14]
[1641489900241,1.86289941,3413.7,3413.6,16.14479]
[1641489900445,1.86289941,3413.9,3413.6,16.14479]
[1641489900738,1.86289941,3413.9,3413.8,1.5]
[1641489901439,1.86289941,3413.9,3413.7,13.497163]
[1641489901641,1.86289941,3413.9,3413.8,1.5]
[1641489901939,1.86289941,3413.9,3413.8,14.14]
[1641489902142,1.86289941,3414.3,3413.8,14.14]
[1641489902340,1.86289941,3414.3,3413.9,0.397181]
[1641489902541,1.86289941,3414.3,3414.1,1.5]
[1641489902941,1.86289941,3414.3,3414.2,0.857163]
[1641489903140,1.86289941,3414.4,3414.2,0.857163]
[1641489903340,1.86289941,3414.4,3414.2,0.988181]
[1641489904143,1.86289941,3414.4,3414.2,1.448163]
[1641489904344,1.86289941,3414.4,3414.2,0.397181]
[1641489904542,1.86289941,3414.4,3414.1,1.5]
[1641489904543,1.86289941,3414.4,3413.7,0.72804817]
[1641489904744,1.86289941,3414.4,3413.8,1.897181]
[1641489905143,0.397182,3414.3,3413.8,1.897181]
[1641489906546,1.86289941,3414.2,3413.8,0.397181]
[1641489906743,1.86289941,3414.2,3413.8,1.897181]
[1641489906944,1.86289941,3414.2,3413.8,0.397181]
[1641489907845,2.26008141,3414.3,3413.8,0.397181]
[1641489908046,2.26008141,3414.3,3414.1,1.5]
[1641489908246,1.86289941,3414.3,3414.1,1.897181]
[1641489908647,1.86289941,3414.3,3414.1,0.397181]
[1641489909050,1.86289941,3414.3,3414.1,1.5]
[1641489909248,1.86289941,3414.3,3413.6,2.73283817]
[1641489909448,1.86289941,3414.3,3413.7,0.397181]
[1641489909649,0.397182,3414.2,3413.6,0.72804817]
[1641489909848,0.397182,3414.2,3413.7,0.72804817]
[1641489910047,0.397182,3414.2,3414.1,1.5]
[1641489910249,0.397182,3414.2,3413.7,1.12522917]
[1641489910652,0.397182,3414.2,3413.7,2.62522917]
[1641489910854,1.86289941,3414.3,3413.7,2.62522917]
[1641489911053,1.86289941,3414.3,3413.7,1.12522917]
[1641489911257,1.86289941,3414.0,3413.7,0.397181]
[1641489911456,1.86289941,3414.0,3413.9,1.5]
[1641489911655,1.86289941,3414.0,3413.9,1.897181]
[1641489912457,4.34676529,3414.3,3413.9,1.897181]
[1641489912657,1.86289941,3414.3,3413.9,1.897181]
[1641489913156,1.86289941,3414.3,3413.9,0.397181]
[1641489913559,4.25216141,3414.5,3414.2,1.5]
[1641489914061,4.25216141,3414.5,3414.1,0.397181]
[1641489914659,4.25216141,3414.5,3414.4,1.5]
[1641489914863,4.25216141,3414.5,3414.1,0.397181]
[1641489915061,3.86768941,3414.5,3414.1,0.397181]
[1641489915560,3.86768941,3414.5,3414.1,1.897181]
[1641489915764,1.86289941,3414.4,3414.1,1.897181]
[1641489915962,1.86289941,3414.4,3414.2,0.459982]
[1641489916162,1.86289941,3414.4,3414.3,1.897181]
[1641489916664,1.86289941,3414.4,3414.3,14.537181]
[1641489916861,2.48386588,3414.7,3414.3,16.037181]
[1641489917164,3.10483234,3414.9,3414.6,17.10378808]
[1641489917165,2.48152834,3414.9,3414.6,17.10378808]
[1641489917360,2.48152834,3414.9,3414.7,0.397181]
[1641489917563,2.48152834,3414.9,3414.8,14.14]
[1641489917862,2.48152834,3414.9,3414.8,14.599982]
[1641489918062,3.41531558,3415.4,3414.8,14.599982]
[1641489918262,3.41531558,3415.4,3415.0,14.14]
[1641489918862,0.6917703,3416.0,3415.2,1.5]
[1641489919165,0.6917703,3416.0,3415.9,14.14]
[1641489919362,0.6917703,3416.0,3415.9,15.268282]
[1641489919562,0.6917703,3416.0,3415.9,15.665463]
[1641489919865,0.6917703,3416.0,3415.9,4.02889849]
[1641489920067,0.6917703,3416.0,3415.9,2.52889849]
[1641489920266,0.15526153,3416.0,3415.9,1.86059849]
[1641489920469,0.384472,3416.2,3415.9,0.857163]
[1641489920665,0.384472,3416.2,3415.9,0.459982]
[1641489921268,0.384472,3416.2,3415.9,0.998082]
[1641489921467,0.384472,3416.2,3416.1,1.5]
[1641489921670,0.397182,3416.3,3416.1,1.959982]
[1641489921968,0.781654,3416.4,3416.1,0.459982]
[1641489922568,0.781654,3416.4,3415.6,2.00479]
[1641489922768,1.5,3416.2,3415.1,0.72804817]
[1641489922969,1.5,3415.7,3415.1,0.72804817]
[1641489923167,0.397182,3415.6,3415.1,0.72804817]
[1641489923771,1.897182,3415.6,3415.1,0.72804817]
[1641489923968,0.384472,3415.5,3414.9,2.00479]
[1641489924171,0.397182,3415.4,3414.9,2.00479]
[1641489925770,1.104182,3415.4,3414.9,2.00479]
[1641489926170,0.384472,3415.3,3414.9,2.00479]
[1641489926373,13.50478999,3415.0,3413.2,1.61015641]
[1641489926572,1.5,3413.9,3413.3,1.61015641]
[1641489926773,0.397182,3413.8,3413.3,1.61015641]
[1641489927174,0.7374,3413.9,3413.3,14.25015641]
[1641489927374,0.7374,3413.9,3413.5,12.64]
[1641489927773,0.7374,3413.9,3413.7,12.64]
[1641489927973,2.937,3414.6,3413.9,12.64]
[1641489928174,0.781654,3414.5,3413.9,12.64]
[1641489928374,2.00479,3414.0,3413.9,12.64]
[1641489928775,2.00479,3414.0,3413.9,12.793218]
[1641489929173,2.00479,3414.0,3413.9,13.190399]
[1641489930173,2.00479,3414.0,3413.9,0.550399]
[1641489930373,2.00479,3414.0,3413.9,0.397181]
[1641489930573,2.464772,3414.0,3413.9,0.397181]
[1641489930873,2.00479,3414.0,3413.9,13.190399]
[1641489931275,2.00479,3414.0,3413.9,13.037181]
[1641489931773,2.00479,3414.0,3413.9,13.6561276]
[1641489932973,2.00479,3414.0,3413.9,16.6202886]
[1641489933174,28.1816,3414.9,3413.9,15.1561276]
[1641489933375,28.1816,3414.9,3413.9,15.9746276]
[1641489933674,27.9425,3415.2,3413.9,14.4746276]
[1641489934482,2.00479,3414.7,3413.9,16.013689]
[1641489934880,2.00479,3414.7,3414.1,12.64]
[1641489935077,2.00479,3414.7,3414.2,0.397181]
[1641489935279,2.00479,3414.7,3414.3,12.64]
[1641489936081,2.00479,3414.7,3414.5,12.64]
[1641489936484,2.464772,3414.7,3414.5,12.64]
[1641489936882,2.00479,3414.7,3414.5,12.64]
[1641489937087,2.00479,3414.7,3414.6,0.153218]
[1641489937285,2.00479,3414.7,3414.6,0.690618]
[1641489938288,2.00479,3414.7,3414.6,1.087799]
[1641489940589,2.00479,3414.7,3414.6,13.727799]
[1641489943292,2.464772,3414.7,3414.6,0.5374]
[1641489943491,2.464772,3414.7,3414.1,1.46408168]
[1641489943691,2.464772,3414.7,3413.2,56.3891]
[1641489943891,2.464772,3414.7,3413.2,29.4809]
[1641489944099,2.464772,3414.7,3412.8,29.9004]
[1641489944292,2.464772,3414.7,3413.4,1.46434539]
[1641489944493,2.00479,3414.2,3413.5,14.64479]
[1641489944696,2.00479,3414.2,3413.7,12.64]
[1641489945395,2.401972,3414.2,3413.7,12.64]
[1641489946196,2.401972,3414.2,3413.9,12.64]
[1641489946397,2.401972,3414.2,3414.1,12.64]
[1641489946597,2.00479,3414.2,3414.1,12.64]
[1641489947498,2.464772,3414.2,3414.1,12.64]
[1641489947699,2.00479,3414.2,3414.1,12.64]
[1641489949904,2.00479,3414.2,3414.0,0.550399]
[1641489950103,2.00479,3414.2,3414.0,0.153218]
[1641489950504,0.384472,3414.5,3414.0,0.153218]
[1641489950703,0.397182,3414.4,3414.0,0.153218]
[1641489950904,0.397182,3414.4,3414.1,12.64]
[1641489951105,2.00479,3414.3,3414.2,0.153218]
[1641489952305,2.464772,3414.3,3414.1,13.385]
[1641489952608,2.00479,3414.3,3414.2,0.153218]
[1641489953104,2.00479,3414.3,3414.1,13.385]
[1641489953706,2.00479,3414.3,3414.2,0.153218]
[1641489954105,2.00479,3414.3,3414.2,0.550399]
[1641489954305,2.464772,3414.3,3414.2,0.397181]
[1641489955109,2.00479,3414.3,3414.2,0.550399]
[1641489955807,2.464772,3414.3,3414.2,0.397181]
[1641489956507,2.00479,3414.3,3414.2,0.550399]
[1641489956909,2.00479,3414.3,3414.2,0.397181]
[1641489957308,2.00479,3414.3,3414.2,0.550399]
[1641489957811,2.00479,3414.3,3414.2,13.190399]
[1641489959411,2.00479,3414.3,3414.2,16.15440781]
[1641489959613,2.00479,3414.6,3414.2,14.65440781]
[1641489960615,2.00479,3414.6,3414.2,15.37986623]
[1641489961115,2.00479,3415.1,3414.4,1.5]
[1641489961419,2.00479,3415.1,3414.7,12.64]
[1641489961616,2.00479,3415.1,3414.7,13.1801]
[1641489962017,2.00479,3415.1,3414.9,12.64]
[1641489962317,2.00479,3415.1,3414.8,0.397181]
[1641489962318,2.00479,3415.1,3415.0,12.793218]
[1641489962517,2.00479,3415.1,3415.0,12.64]
[1641489962717,2.00479,3415.1,3414.8,0.397181]
[1641489963317,2.00479,3415.1,3414.8,13.037181]
[1641489963516,2.00479,3415.1,3414.9,12.793218]
[1641489963717,27.1112,3415.9,3415.1,12.64]
[1641489964120,62.15634725,3416.5,3415.1,12.64]
[1641489964320,62.15634725,3416.5,3415.3,12.64]
[1641489965322,2.00479,3416.1,3415.6,1.5]
[1641489965621,2.00479,3416.4,3416.1,12.64]
[1641489965622,2.15995514,3416.4,3416.1,12.64]
[1641489965820,2.15995514,3416.4,3416.3,14.14]
[1641489966022,2.15995514,3416.4,3416.3,13.826781]
[1641489966620,0.15516514,3416.4,3416.3,13.979999]
[1641489967120,0.15516514,3416.4,3416.3,15.479999]
[1641489967321,2.48124725,3417.0,3416.3,17.484789]
[1641489967523,2.00479,3417.3,3416.3,17.484789]
[1641489968722,1.5,3417.1,3416.3,2.79439]
[1641489968923,2.00479,3417.3,3416.3,2.00479]
[1641489968924,0.781654,3417.0,3416.3,2.00479]
[1641489969123,0.781654,3417.0,3416.3,2.401971]
[1641489969723,0.781654,3417.0,3416.3,15.041971]
[1641489970525,0.781654,3417.0,3416.5,12.64]
[1641489970727,2.15995514,3417.3,3416.5,13.3409]
[1641489970925,2.15995514,3417.3,3416.7,12.64]
[1641489971125,0.384472,3417.2,3416.7,12.64]
[1641489971525,0.384472,3417.2,3416.3,2.00479]
[1641489971725,0.384472,3417.2,3416.3,3.46792699]
[1641489972028,0.384472,3417.2,3416.3,2.00479]
[1641489973429,1.5,3416.8,3416.3,2.00479]
[1641489973628,0.397182,3416.7,3416.3,2.00479]
[1641489973829,1.5,3417.0,3416.3,2.00479]
[1641489974029,0.6286,3417.1,3416.3,2.00479]
[1641489974328,0.397182,3417.0,3416.3,2.00479]
[1641489975532,2.00479,3416.9,3416.3,2.00479]
[1641489975729,0.397182,3416.8,3416.3,2.00479]
[1641489976628,1.897182,3416.8,3416.3,2.00479]
[1641489976828,0.397182,3416.8,3416.3,2.00479]
[1641489977729,0.977782,3416.8,3416.3,2.00479]
[1641489978331,1.5,3416.5,3414.8,0.72545842]
[1641489978530,0.5806,3416.8,3416.0,1.5]
[1641489978730,2.00479,3416.9,3416.0,1.5]
[1641489978731,0.781654,3416.7,3416.0,1.5]
[1641489978929,0.781654,3416.7,3416.0,2.96325475]
[1641489979529,2.00479,3416.2,3416.0,2.96325475]
[1641489979731,0.459982,3416.1,3416.0,2.96325475]
[1641489979931,2.00479,3416.2,3416.0,2.96325475]
[1641489980532,2.00479,3416.2,3416.1,0.153218]
[1641489981332,2.00479,3416.2,3416.1,12.793218]
[1641489982033,2.00479,3416.2,3416.1,13.511618]
[1641489983033,2.00479,3416.9,3416.1,14.97468435]
[1641489983234,2.00479,3416.9,3416.2,0.397181]
[1641489983436,0.384472,3416.8,3416.2,0.397181]
[1641489983637,0.781654,3416.8,3416.1,2.18146635]
[1641489983835,0.781654,3416.8,3416.1,1.46306635]
[1641489984234,0.384472,3416.8,3416.2,0.397181]
[1641489984434,0.384472,3416.8,3416.2,1.015081]
[1641489985435,2.00479,3416.5,3416.3,12.64]
[1641489985634,2.00479,3416.5,3416.4,0.153218]
[1641489985834,2.00479,3416.5,3416.4,0.397181]
[1641489986537,0.15516514,3417.5,3416.4,17.59968204]
[1641489986734,0.15516514,3417.5,3417.4,14.14]
[1641489986934,0.15516514,3417.5,3417.4,15.234981]
[1641489987335,0.15516514,3417.5,3417.4,13.888199]
[1641489987534,0.15516514,3417.5,3417.4,18.89521753]
[1641489988336,0.61514714,3417.5,3417.4,18.89521753]
[1641489988637,0.15516514,3417.5,3417.4,18.89521753]
[1641489989135,0.15516514,3419.0,3417.4,18.89521753]
[1641489989535,0.15516514,3419.0,3418.0,2.00479]
[1641489989735,0.397182,3418.6,3418.0,2.00479]
[1641489991438,0.384472,3418.5,3418.0,2.00479]
[1641489991638,0.384472,3418.5,3418.1,1.5]
[1641489991839,2.01169659,3419.0,3418.3,1.5]
[1641489992037,2.01169659,3419.0,3418.1,2.21736031]
[1641489992038,2.01169659,3419.0,3418.4,12.64]
[1641489992237,2.01169659,3419.0,3418.5,0.397181]
[1641489992438,0.15516514,3419.0,3418.5,13.037181]
[1641489993843,0.15516514,3419.0,3418.5,2.401971]
[1641489994041,0.15516514,3419.0,3418.5,0.397181]
[1641489994243,0.55234714,3419.0,3418.1,0.755]
[1641489995243,0.15516514,3419.0,3418.7,1.5]
[1641489995445,0.15516514,3419.0,3418.8,13.190399]
[1641489995643,0.15516514,3419.0,3418.8,1.252999]
[1641489995845,0.15516514,3419.0,3418.9,2.00479]
[1641489996244,0.15516514,3419.0,3418.9,14.798008]
[1641489997846,0.15516514,3419.0,3418.9,2.158008]
[1641489998446,0.15516514,3419.0,3418.9,2.00479]
[1641489998847,0.15516514,3419.0,3418.9,14.64479]
[1641489999049,0.15516514,3419.0,3418.9,14.798008]
[1641489999450,0.15516514,3419.0,3418.9,16.25999844]
[1641489999648,3.10168246,3419.6,3419.0,0.397181]
[1641489999849,1.6576678,3419.6,3419.5,14.64479]
[1641490000049,1.6556678,3419.6,3419.5,17.07116764]
[1641490000252,1.6556678,3419.6,3419.5,17.46834864]
[1641490000450,1.85021694,3419.8,3419.5,17.46834864]
[1641490000854,1.85021694,3419.8,3419.5,16.006589]
[1641490001656,2.00479,3420.3,3419.5,16.006589]
[1641490001855,0.781654,3420.2,3419.5,15.853371]
[1641490002557,2.00479,3420.3,3419.5,15.853371]
[1641490004058,2.00479,3420.3,3419.7,12.64]
[1641490004259,2.00479,3420.3,3419.9,12.64]
[1641490004457,2.00479,3420.3,3419.8,0.397181]
[1641490004657,2.389262,3420.3,3419.8,0.397181]
[1641490004857,1.5,3420.2,3419.5,2.81619]
[1641490005058,0.397182,3420.2,3419.5,3.213371]
[1641490005258,2.00479,3420.3,3419.5,3.213371]
[1641490005458,2.00479,3420.6,3419.5,3.213371]
[1641490005657,2.00479,3420.6,3419.6,12.64]
[1641490005856,2.00479,3420.6,3419.5,3.213371]
[1641490005857,2.00479,3420.6,3420.0,12.64]
[1641490006056,2.00479,3421.1,3420.0,13.037181]
[1641490006557,2.00479,3421.1,3421.0,28.14679812]
[1641490006760,2.00479,3421.1,3421.0,28.86901612]
[1641490006959,2.464772,3421.1,3421.0,28.71579812]
[1641490007160,2.00479,3421.1,3421.0,28.71579812]
[1641490007557,2.00479,3421.1,3421.0,28.86901612]
[1641490007757,2.00479,3421.1,3421.0,28.71579812]
[1641490007963,2.00479,3421.1,3421.0,28.14679812]
[1641490008365,2.00479,3421.1,3421.0,28.30001612]
[1641490008567,2.00479,3421.1,3421.0,28.14679812]
[1641490008865,2.464772,3421.1,3421.0,28.14679812]
[1641490009066,2.00479,3421.1,3421.0,28.14679812]
[1641490009468,2.00479,3421.4,3421.0,41.18397912]
[1641490010568,2.00479,3421.4,3421.0,42.64510229]
[1641490010970,2.00479,3421.4,3417.4,4.21381527]
[1641490010971,1.5,3421.1,3420.0,0.618]
[1641490011169,1.5,3420.5,3419.8,1.46163785]
[1641490011370,0.5649,3420.5,3419.8,1.46163785]
[1641490011570,0.5649,3420.5,3419.1,1.5]
[1641490011770,0.5649,3420.5,3418.9,31.1625]
[1641490011771,0.397182,3420.4,3420.1,2.00479]
[1641490011972,0.459982,3420.3,3420.1,2.00479]
[1641490012172,0.397182,3420.4,3420.1,2.00479]
[1641490012870,0.459982,3420.3,3420.1,2.00479]
[1641490013069,0.384472,3420.6,3420.2,12.56]
[1641490013278,0.397182,3420.4,3420.2,12.56]
[1641490014074,0.397182,3420.4,3420.1,2.00479]
[1641490015276,1.897182,3420.4,3420.1,2.00479]
[1641490015477,0.397182,3420.4,3418.9,31.1625]
[1641490015677,0.397182,3420.4,3419.3,1.46183229]
[1641490015877,2.00479,3420.1,3419.3,3.46662229]
[1641490016076,2.00479,3420.1,3419.3,2.00479]
[1641490016077,0.397182,3420.0,3419.3,2.00479]
[1641490016276,0.384472,3419.9,3419.3,2.00479]
[1641490016476,1.018372,3419.9,3419.3,2.00479]
[1641490016676,0.397182,3419.8,3419.3,2.00479]
[1641490016876,0.397182,3419.8,3419.3,14.56479]
[1641490018478,0.397182,3419.8,3419.3,2.00479]
[1641490018679,2.00479,3420.1,3419.3,14.56479]
[1641490018879,0.397182,3420.0,3419.6,12.56]
[1641490019079,32.2694,3420.7,3419.6,12.56]
[1641490019480,1.5,3420.6,3419.5,1.46177246]
[1641490019682,1.5,3420.6,3419.5,14.02177246]
[1641490019882,2.00479,3420.1,3419.5,1.46177246]
[1641490020081,0.397182,3420.0,3419.5,1.46177246]
[1641490020282,0.397182,3420.0,3419.3,2.00479]
[1641490022087,1.5,3419.7,3418.8,0.72545842]
[1641490022288,0.5928,3419.7,3418.8,0.72545842]
[1641490022886,0.5928,3419.7,3418.4,0.72545842]
[1641490023287,1.5,3419.3,3418.4,0.72545842]
[1641490023986,2.00479,3418.8,3418.4,0.72545842]
[1641490024187,0.781654,3418.7,3418.4,0.72545842]
[1641490024386,0.781654,3418.7,3418.0,2.73024842]
[1641490024888,1.492954,3418.7,3418.0,2.73024842]
[1641490025687,1.492954,3418.7,3418.0,2.00479]
[1641490025888,0.19437726,3418.7,3418.0,2.00479]
[1641490026287,0.384472,3418.6,3418.0,2.00479]
[1641490026987,0.384472,3418.6,3417.9,0.72545842]
[1641490027187,0.384472,3418.6,3417.6,2.18803903]
[1641490027396,0.384472,3418.6,3417.6,0.72545842]
[1641490027788,0.384472,3418.6,3417.6,13.28545842]
[1641490027990,0.384472,3418.6,3417.7,3.46731927]
[1641490028394,0.384472,3418.6,3417.7,16.02731927]
[1641490028595,3.50479,3418.8,3418.7,1.59894444]
[1641490028792,2.00479,3418.8,3417.7,2.00479]
[1641490029594,4.32459,3418.8,3417.7,2.00479]
[1641490030295,2.82459,3418.8,3417.7,2.00479]
[1641490031695,2.82459,3418.8,3417.7,14.56479]
[1641490031895,2.00479,3418.8,3417.7,14.56479]
[1641490032096,2.00479,3418.8,3417.9,1.4624266]
[1641490032296,2.00479,3418.8,3417.7,2.00479]
[1641490032501,3.50479,3418.8,3417.7,2.00479]
[1641490032898,2.00479,3418.8,3417.7,14.56479]
[1641490033196,2.00479,3418.8,3417.8,1.46248435]
[1641490033997,2.00479,3418.4,3417.8,1.46248435]
[1641490034196,2.00479,3418.4,3418.0,1.78319643]
[1641490034697,2.00479,3418.4,3418.1,0.397182]
[1641490034897,2.00479,3418.4,3418.2,0.459982]
[1641490035499,2.00479,3418.4,3418.1,0.397182]
[1641490035899,2.00479,3418.4,3418.2,0.459982]
[1641490036100,2.00479,3418.4,3418.3,0.397182]
[1641490036400,2.00479,3418.4,3418.3,0.86206614]
[1641490036598,2.00479,3418.8,3418.3,0.86206614]
[1641490036801,0.27022549,3419.3,3418.3,0.86206614]
[1641490037000,0.27022549,3419.3,3418.4,12.56]
[1641490037400,1.46826746,3419.4,3418.4,12.56]
[1641490037702,1.46826746,3419.8,3418.4,0.46488414]
[1641490037901,2.00479,3419.3,3418.5,2.00479]
[1641490038708,1.46826746,3419.8,3418.6,0.781654]
[1641490038905,1.46826746,3419.8,3419.7,2.9615994]
[1641490039107,2.44478602,3420.3,3419.7,15.280382]
[1641490039306,1.47821705,3421.0,3420.0,12.56]
[1641490039509,1.47821705,3421.0,3420.3,12.56]
[1641490039710,1.47821705,3421.0,3420.3,12.957182]
[1641490039908,1.47821705,3421.0,3420.7,14.56479]
[1641490040111,1.47821705,3421.0,3420.8,13.019982]
[1641490041211,2.00479,3421.5,3420.8,13.019982]
[1641490041412,2.00479,3421.5,3421.1,1.4610762]
[1641490041621,33.33671705,3422.4,3421.4,14.02090757]
[1641490041831,1.47821705,3422.4,3421.9,1.46074326]
[1641490042019,3.48300705,3422.4,3421.9,1.46074326]
[1641490043120,3.48300705,3422.4,3421.6,2.00479]
[1641490043319,2.00479,3422.4,3421.6,2.00479]
[1641490043519,2.00479,3422.4,3421.7,0.781654]
[1641490044619,2.00479,3422.4,3421.9,1.46070912]
[1641490044820,2.00479,3422.4,3421.9,1.85789112]
[1641490045426,2.00479,3422.4,3421.9,1.46070912]
[1641490046426,2.00479,3422.4,3421.6,3.46549911]
[1641490046427,2.00479,3422.4,3421.6,2.00479]
[1641490046624,2.00479,3422.4,3421.7,0.397182]
[1641490047827,2.00479,3422.4,3421.7,1.85801275]
[1641490048027,1.5,3422.2,3421.6,2.00479]
[1641490048224,1.5,3421.9,3421.3,1.46098868]
[1641490048426,1.5,3422.1,3421.3,1.46098868]
[1641490048827,1.5,3422.1,3421.0,0.72027742]
[1641490049026,1.5,3422.3,3421.0,0.72027742]
[1641490049228,1.5,3422.1,3421.0,0.72027742]
[1641490049627,1.5,3422.3,3421.0,0.72027742]
[1641490049828,1.5,3422.3,3420.9,12.56]
[1641490050229,2.00479,3421.7,3420.9,14.56479]
[1641490050429,2.00479,3421.7,3421.5,12.56]
[1641490050630,2.00479,3421.7,3421.6,0.459982]
[1641490050829,2.00479,3422.4,3421.6,0.459982]
[1641490051030,2.00479,3422.4,3421.4,1.46093745]
[1641490051829,2.00479,3422.4,3421.9,1.46073472]
[1641490052230,2.00479,3422.0,3421.9,1.46073472]
[1641490053232,2.00479,3422.0,3420.9,2.00479]
[1641490053430,2.00479,3422.0,3421.0,0.72027742]
[1641490054431,2.00479,3422.0,3421.0,1.184768]
[1641490054632,2.00479,3422.0,3421.1,1.4609652]
[1641490056830,2.00479,3422.0,3421.0,13.28027742]